[Event "Late-Titled-Tuesday-Blitz-June-18-2024"]
[Site "Chess.com"]
[Date "2024.06.18"]
[Round "5"]
[White "Kombinator01"]
[Black "Sondremelaa"]
[Result "1/2-1/2"]
[WhiteElo "2447"]
[BlackElo "2616"]
[TimeControl "180+1"]
[EndTime "14:59:57 PDT"]
[Termination "Game drawn - insufficient material"]

1. d4 {[%clk 0:03:00.9]} 1... d5 {[%clk 0:02:58.8]} 2. Bf4 {[%clk 0:03:00.3]}
2... Nf6 {[%clk 0:02:55.9]} 3. e3 {[%clk 0:02:57.2]} 3... c5 {[%clk 0:02:56]} 4.
Nf3 {[%clk 0:02:56]} 4... Nc6 {[%clk 0:02:56]} 5. Nbd2 {[%clk 0:02:55.7]} 5...
cxd4 {[%clk 0:02:55.7]} 6. exd4 {[%clk 0:02:56.5]} 6... Bf5 {[%clk 0:02:55.7]}
7. Nb3 {[%clk 0:02:53.4]} 7... e6 {[%clk 0:02:50.9]} 8. c3 {[%clk 0:02:52.7]}
8... Bd6 {[%clk 0:02:48.9]} 9. Bxd6 {[%clk 0:02:52.5]} 9... Qxd6 {[%clk
0:02:48.7]} 10. Bd3 {[%clk 0:02:53.4]} 10... Ne4 {[%clk 0:02:45.8]} 11. O-O
{[%clk 0:02:52.9]} 11... O-O {[%clk 0:02:44.6]} 12. Re1 {[%clk 0:02:53]} 12...
h6 {[%clk 0:02:43]} 13. Qe2 {[%clk 0:02:52.1]} 13... Rac8 {[%clk 0:02:39.3]} 14.
Nfd2 {[%clk 0:02:52.4]} 14... Nxd2 {[%clk 0:02:33.1]} 15. Nxd2 {[%clk
0:02:53.3]} 15... Bxd3 {[%clk 0:02:32.2]} 16. Qxd3 {[%clk 0:02:54.2]} 16... a6
{[%clk 0:02:31.2]} 17. a4 {[%clk 0:02:53.1]} 17... Na5 {[%clk 0:02:29.1]} 18.
Re3 {[%clk 0:02:48.7]} 18... Nc4 {[%clk 0:02:23.6]} 19. Nxc4 {[%clk 0:02:48.6]}
19... Rxc4 {[%clk 0:02:24.5]} 20. Rg3 {[%clk 0:02:46.7]} 20... Rfc8 {[%clk
0:02:18.7]} 21. Qe3 {[%clk 0:02:46.2]} 21... a5 {[%clk 0:02:07.8]} 22. f4 {[%clk
0:02:46.1]} 22... Rb8 {[%clk 0:01:33.6]} 23. h4 {[%clk 0:02:45.2]} 23... b5
{[%clk 0:01:32.4]} 24. axb5 {[%clk 0:02:35.6]} 24... Rxb5 {[%clk 0:01:32]} 25.
h5 {[%clk 0:02:36.3]} 25... a4 {[%clk 0:01:24.7]} 26. Ra2 {[%clk 0:02:19.3]}
26... Rc8 {[%clk 0:01:11.7]} 27. Kh2 {[%clk 0:02:11.2]} 27... Rcb8 {[%clk
0:01:11.2]} 28. Rxa4 {[%clk 0:01:59.8]} 28... Rxb2 {[%clk 0:01:10.4]} 29. Ra7
{[%clk 0:01:48.9]} 29... R2b7 {[%clk 0:01:08.1]} 30. Rxb7 {[%clk 0:01:41.9]}
30... Rxb7 {[%clk 0:01:09]} 31. Qe5 {[%clk 0:01:42.2]} 31... Qxe5 {[%clk
0:01:07.7]} 32. fxe5 {[%clk 0:01:43.1]} 32... Rb2 {[%clk 0:01:06.1]} 33. Kh3
{[%clk 0:01:41.3]} 33... Rc2 {[%clk 0:01:04.8]} 34. Kg4 {[%clk 0:01:41.1]} 34...
Kf8 {[%clk 0:01:04.6]} 35. Kf4 {[%clk 0:01:41.1]} 35... Rf2+ {[%clk 0:01:02.4]}
36. Ke3 {[%clk 0:01:38.9]} 36... Rf5 {[%clk 0:01:02.1]} 37. Rh3 {[%clk
0:01:38.8]} 37... Ke7 {[%clk 0:00:58.4]} 38. g4 {[%clk 0:01:38.8]} 38... Rf1
{[%clk 0:00:57.5]} 39. Rg3 {[%clk 0:01:38]} 39... Rd1 {[%clk 0:00:56.7]} 40. g5
{[%clk 0:01:37.5]} 40... Rh1 {[%clk 0:00:52.7]} 41. gxh6 {[%clk 0:01:31.4]}
41... gxh6 {[%clk 0:00:51.3]} 42. Rg8 {[%clk 0:01:30.7]} 42... Rxh5 {[%clk
0:00:50.5]} 43. Ra8 {[%clk 0:01:28.9]} 43... Rh3+ {[%clk 0:00:51.1]} 44. Kd2
{[%clk 0:01:29.1]} 44... h5 {[%clk 0:00:51.4]} 45. Rh8 {[%clk 0:01:27.4]} 45...
h4 {[%clk 0:00:50.6]} 46. Kc2 {[%clk 0:01:27.7]} 46... Kd7 {[%clk 0:00:44.7]}
47. Kb3 {[%clk 0:01:27.9]} 47... Rh1 {[%clk 0:00:41.4]} 48. Kb4 {[%clk
0:01:27.4]} 48... h3 {[%clk 0:00:34.6]} 49. Kc5 {[%clk 0:01:24]} 49... h2 {[%clk
0:00:34.4]} 50. Rh3 {[%clk 0:01:18.1]} 50... Rc1 {[%clk 0:00:32.7]} 51. Rxh2
{[%clk 0:01:18.3]} 51... Rxc3+ {[%clk 0:00:33.3]} 52. Kb5 {[%clk 0:01:18.8]}
52... Rc4 {[%clk 0:00:28.9]} 53. Rf2 {[%clk 0:01:14.4]} 53... Ke7 {[%clk
0:00:28.6]} 54. Rf4 {[%clk 0:01:15]} 54... Kf8 {[%clk 0:00:28.5]} 55. Kb6 {[%clk
0:01:12.8]} 55... Kg7 {[%clk 0:00:27.2]} 56. Kb5 {[%clk 0:01:13.4]} 56... Kg6
{[%clk 0:00:27.3]} 57. Kb6 {[%clk 0:01:13.2]} 57... Rc1 {[%clk 0:00:22.1]} 58.
Kb5 {[%clk 0:01:12.2]} 58... Re1 {[%clk 0:00:20.5]} 59. Kc5 {[%clk 0:01:10.9]}
59... Re4 {[%clk 0:00:20.1]} 60. Rf6+ {[%clk 0:01:11.4]} 60... Kg7 {[%clk
0:00:20]} 61. Rf1 {[%clk 0:01:11.2]} 61... Re2 {[%clk 0:00:18.3]} 62. Rd1 {[%clk
0:01:10.7]} 62... Rc2+ {[%clk 0:00:17.3]} 63. Kd6 {[%clk 0:01:11]} 63... Kf8
{[%clk 0:00:15.3]} 64. Rh1 {[%clk 0:01:09.7]} 64... Rc4 {[%clk 0:00:14.4]} 65.
Rh8+ {[%clk 0:01:07.8]} 65... Kg7 {[%clk 0:00:14.3]} 66. Rh4 {[%clk 0:01:08.7]}
66... Kg6 {[%clk 0:00:14.6]} 67. Ke7 {[%clk 0:01:08]} 67... Rc7+ {[%clk
0:00:14.9]} 68. Kd6 {[%clk 0:01:04.4]} 68... Ra7 {[%clk 0:00:14.8]} 69. Rf4
{[%clk 0:01:03.8]} 69... Kg5 {[%clk 0:00:14.7]} 70. Rf1 {[%clk 0:01:02.7]} 70...
Kg6 {[%clk 0:00:11.3]} 71. Rf6+ {[%clk 0:01:01.6]} 71... Kg7 {[%clk 0:00:11.7]}
72. Rf4 {[%clk 0:01:02.3]} 72... Kf8 {[%clk 0:00:12.1]} 73. Kc6 {[%clk 0:01:01]}
73... Ke7 {[%clk 0:00:12]} 74. Rf1 {[%clk 0:01:00.1]} 74... Ra4 {[%clk
0:00:12.4]} 75. Rf4 {[%clk 0:01:00.3]} 75... Rc4+ {[%clk 0:00:12.7]} 76. Kb6
{[%clk 0:01:00.5]} 76... Ke8 {[%clk 0:00:12.7]} 77. Kb5 {[%clk 0:01:00.7]} 77...
Rc1 {[%clk 0:00:10.7]} 78. Kb6 {[%clk 0:01:00.3]} 78... Ke7 {[%clk 0:00:11.3]}
79. Kb5 {[%clk 0:01:00.2]} 79... Rg1 {[%clk 0:00:12]} 80. Kc5 {[%clk 0:00:59.2]}
80... Rg6 {[%clk 0:00:12.4]} 81. Rf1 {[%clk 0:00:57.9]} 81... f6 {[%clk
0:00:12.8]} 82. Ra1 {[%clk 0:00:54.6]} 82... f5 {[%clk 0:00:07.1]} 83. Ra7+
{[%clk 0:00:54.5]} 83... Kf8 {[%clk 0:00:07.7]} 84. Kd6 {[%clk 0:00:53.6]} 84...
f4 {[%clk 0:00:07.5]} 85. Ra8+ {[%clk 0:00:52.7]} 85... Kg7 {[%clk 0:00:07.7]}
86. Ra7+ {[%clk 0:00:53]} 86... Kh6 {[%clk 0:00:08]} 87. Rf7 {[%clk 0:00:53.5]}
87... Kg5 {[%clk 0:00:08.4]} 88. Ke7 {[%clk 0:00:50.9]} 88... Kg4 {[%clk
0:00:04.9]} 89. Rf6 {[%clk 0:00:51.3]} 89... Rg5 {[%clk 0:00:05.6]} 90. Rxe6
{[%clk 0:00:50.4]} 90... f3 {[%clk 0:00:06.3]} 91. Ra6 {[%clk 0:00:48.5]} 91...
f2 {[%clk 0:00:06.2]} 92. Ra1 {[%clk 0:00:48.9]} 92... Kf3 {[%clk 0:00:05.4]}
93. Rf1 {[%clk 0:00:46.3]} 93... Rg1 {[%clk 0:00:03.2]} 94. Rxf2+ {[%clk
0:00:46.4]} 94... Kxf2 {[%clk 0:00:04.1]} 95. Kd6 {[%clk 0:00:47]} 95... Ke3
{[%clk 0:00:03.7]} 96. Kxd5 {[%clk 0:00:46.6]} 96... Rd1 {[%clk 0:00:04]} 97. e6
{[%clk 0:00:46.5]} 97... Rxd4+ {[%clk 0:00:04.6]} 98. Kc6 {[%clk 0:00:46.5]}
98... Rc4+ {[%clk 0:00:02.7]} 99. Kd7 {[%clk 0:00:45.4]} 99... Rd4+ {[%clk
0:00:03.4]} 100. Kc6 {[%clk 0:00:44.7]} 100... Re4 {[%clk 0:00:03.1]} 101. Kd6
{[%clk 0:00:45]} 101... Kf4 {[%clk 0:00:01.9]} 102. e7 {[%clk 0:00:45.2]} 102...
Rd4+ {[%clk 0:00:02.3]} 103. Ke6 {[%clk 0:00:45]} 103... Re4+ {[%clk 0:00:03.1]}
104. Kf7 {[%clk 0:00:45.9]} 104... Kf5 {[%clk 0:00:03.2]} 105. Kf8 {[%clk
0:00:45.2]} 105... Kf6 {[%clk 0:00:02]} 106. e8=Q {[%clk 0:00:43.6]} 106...
Rxe8+ {[%clk 0:00:02.5]} 107. Kxe8 {[%clk 0:00:44.5]} 1/2-1/2

[Event "Late-Titled-Tuesday-Blitz-June-18-2024"]
[Site "Chess.com"]
[Date "2024.06.18"]
[Round "6"]
[White "talaicito"]
[Black "Roedor"]
[Result "1-0"]
[WhiteElo "2308"]
[BlackElo "2449"]
[TimeControl "180+1"]
[EndTime "15:03:56 PDT"]
[Termination "talaicito won by checkmate"]

1. d4 {[%clk 0:03:00.9]} 1... Nf6 {[%clk 0:02:57.4]} 2. Nc3 {[%clk 0:03:00.1]}
2... d5 {[%clk 0:02:56.6]} 3. Bf4 {[%clk 0:03:00.6]} 3... g6 {[%clk 0:02:56.1]}
4. e3 {[%clk 0:03:00.5]} 4... Bg7 {[%clk 0:02:56.1]} 5. Nf3 {[%clk 0:02:59.4]}
5... O-O {[%clk 0:02:55.7]} 6. Ne5 {[%clk 0:02:59.5]} 6... c5 {[%clk 0:02:53.9]}
7. h4 {[%clk 0:02:59.7]} 7... Nc6 {[%clk 0:02:53.8]} 8. h5 {[%clk 0:02:57.5]}
8... Nxh5 {[%clk 0:02:45.1]} 9. Rxh5 {[%clk 0:02:56.5]} 9... gxh5 {[%clk
0:02:46]} 10. Qxh5 {[%clk 0:02:56.3]} 10... Nxe5 {[%clk 0:02:42]} 11. dxe5
{[%clk 0:02:52.7]} 11... f5 {[%clk 0:02:34.2]} 12. O-O-O {[%clk 0:02:42.8]}
12... Qe8 {[%clk 0:02:26.1]} 13. Qxe8 {[%clk 0:02:23.1]} 13... Rxe8 {[%clk
0:02:27]} 14. Nxd5 {[%clk 0:02:23.2]} 14... Be6 {[%clk 0:02:15.8]} 15. Nc7
{[%clk 0:02:23]} 15... Kf7 {[%clk 0:02:16.2]} 16. Nxe6 {[%clk 0:02:18.4]} 16...
Kxe6 {[%clk 0:02:13.3]} 17. Bc4# {[%clk 0:02:17.2]} 1-0

[Event "Late-Titled-Tuesday-Blitz-June-18-2024"]
[Site "Chess.com"]
[Date "2024.06.18"]
[Round "6"]
[White "HajiyevKanan"]
[Black "GoltsevDmitry2000"]
[Result "0-1"]
[WhiteElo "2555"]
[BlackElo "2716"]
[TimeControl "180+1"]
[EndTime "15:04:20 PDT"]
[Termination "GoltsevDmitry2000 won by resignation"]

1. d4 {[%clk 0:03:00.2]} 1... e6 {[%clk 0:03:00.2]} 2. Nf3 {[%clk 0:02:59.8]}
2... Nf6 {[%clk 0:02:58.9]} 3. c4 {[%clk 0:02:59]} 3... d5 {[%clk 0:02:59.3]} 4.
cxd5 {[%clk 0:02:59.9]} 4... exd5 {[%clk 0:02:59.4]} 5. Nc3 {[%clk 0:03:00.6]}
5... c6 {[%clk 0:02:59.8]} 6. Qc2 {[%clk 0:03:01.1]} 6... h6 {[%clk 0:02:59.2]}
7. Bf4 {[%clk 0:03:00.9]} 7... Na6 {[%clk 0:02:58.1]} 8. e3 {[%clk 0:03:00.7]}
8... Nb4 {[%clk 0:02:51.1]} 9. Qd1 {[%clk 0:03:00.2]} 9... Bf5 {[%clk
0:02:50.6]} 10. Rc1 {[%clk 0:02:59.8]} 10... Qa5 {[%clk 0:02:48]} 11. a3 {[%clk
0:02:59.1]} 11... Na2 {[%clk 0:02:47.6]} 12. Ra1 {[%clk 0:01:52.1]} 12... Nxc3
{[%clk 0:02:45.9]} 13. Qd2 {[%clk 0:01:52.7]} 13... Nfe4 {[%clk 0:02:35.2]} 14.
b4 {[%clk 0:01:39.9]} 14... Bxb4 {[%clk 0:02:30.1]} 0-1

[Event "Late-Titled-Tuesday-Blitz-June-18-2024"]
[Site "Chess.com"]
[Date "2024.06.18"]
[Round "6"]
[White "vesalhamedinia"]
[Black "CombativeWombat"]
[Result "1-0"]
[WhiteElo "2489"]
[BlackElo "2304"]
[TimeControl "180+1"]
[EndTime "15:04:38 PDT"]
[Termination "vesalhamedinia won by checkmate"]

1. d4 {[%clk 0:03:00.9]} 1... Nf6 {[%clk 0:02:58.9]} 2. c4 {[%clk 0:03:00.3]}
2... e6 {[%clk 0:02:59.4]} 3. Nf3 {[%clk 0:03:00]} 3... d5 {[%clk 0:02:59.8]} 4.
Nc3 {[%clk 0:02:57.3]} 4... dxc4 {[%clk 0:03:00.2]} 5. e3 {[%clk 0:02:57.3]}
5... a6 {[%clk 0:03:00.3]} 6. a4 {[%clk 0:02:56.6]} 6... c5 {[%clk 0:03:00.4]}
7. Bxc4 {[%clk 0:02:55.1]} 7... Nc6 {[%clk 0:03:00.6]} 8. O-O {[%clk 0:02:54.7]}
8... Be7 {[%clk 0:02:52.5]} 9. b3 {[%clk 0:02:52.6]} 9... cxd4 {[%clk
0:02:45.4]} 10. exd4 {[%clk 0:02:52.8]} 10... O-O {[%clk 0:02:41.3]} 11. d5
{[%clk 0:02:46.5]} 11... Na5 {[%clk 0:02:40.2]} 12. dxe6 {[%clk 0:02:46.8]}
12... Bxe6 {[%clk 0:02:34.5]} 13. Bxe6 {[%clk 0:02:45.9]} 13... fxe6 {[%clk
0:02:33.6]} 14. Qe2 {[%clk 0:02:43.4]} 14... Nxb3 {[%clk 0:02:31.5]} 15. Qxe6+
{[%clk 0:02:41.8]} 15... Kh8 {[%clk 0:02:31.4]} 16. Qxb3 {[%clk 0:02:41.9]}
16... Qa5 {[%clk 0:02:17.4]} 17. Bb2 {[%clk 0:02:37.5]} 17... Ng4 {[%clk
0:02:11.4]} 18. Nd5 {[%clk 0:02:33.3]} 18... Bd6 {[%clk 0:01:58.2]} 19. h3
{[%clk 0:02:31.3]} 19... Rf5 {[%clk 0:01:50]} 20. hxg4 {[%clk 0:02:18.3]} 20...
Rxd5 {[%clk 0:01:48.5]} 21. Qxb7 {[%clk 0:02:16.4]} 21... Rb8 {[%clk 0:01:46.3]}
22. Qxg7# {[%clk 0:02:16.3]} 1-0

[Event "Late-Titled-Tuesday-Blitz-June-18-2024"]
[Site "Chess.com"]
[Date "2024.06.18"]
[Round "6"]
[White "farzadbfd"]
[Black "tgpgoat"]
[Result "1-0"]
[WhiteElo "2699"]
[BlackElo "2509"]
[TimeControl "180+1"]
[EndTime "15:04:50 PDT"]
[Termination "farzadbfd won by resignation"]

1. e4 {[%clk 0:03:00.9]} 1... c5 {[%clk 0:03:00.5]} 2. Nc3 {[%clk 0:03:00.5]}
2... e6 {[%clk 0:03:00.9]} 3. g3 {[%clk 0:03:01]} 3... Nc6 {[%clk 0:03:00.7]} 4.
Bg2 {[%clk 0:03:01]} 4... Nf6 {[%clk 0:03:01]} 5. Nge2 {[%clk 0:03:00.3]} 5...
d5 {[%clk 0:03:01.5]} 6. exd5 {[%clk 0:02:59.9]} 6... exd5 {[%clk 0:03:01.6]} 7.
d4 {[%clk 0:03:00.2]} 7... cxd4 {[%clk 0:02:59.1]} 8. Nxd4 {[%clk 0:03:01.1]}
8... Bg4 {[%clk 0:02:48.6]} 9. f3 {[%clk 0:02:32.2]} 9... Bh5 {[%clk 0:02:44.2]}
10. O-O {[%clk 0:02:24.4]} 10... Bc5 {[%clk 0:02:41.6]} 11. Re1+ {[%clk
0:02:24.4]} 11... Kd7 {[%clk 0:02:12.7]} 12. Bh3+ {[%clk 0:02:16.9]} 12... Kc7
{[%clk 0:02:12.4]} 13. Bf4+ {[%clk 0:02:16.7]} 13... Kb6 {[%clk 0:01:56]} 14.
Na4+ {[%clk 0:02:16.1]} 14... Ka5 {[%clk 0:01:38.5]} 15. Nxc5 {[%clk 0:02:15.6]}
15... Qb6 {[%clk 0:01:30.4]} 1-0

[Event "Late-Titled-Tuesday-Blitz-June-18-2024"]
[Site "Chess.com"]
[Date "2024.06.18"]
[Round "6"]
[White "safikiet"]
[Black "mfschulz"]
[Result "1-0"]
[WhiteElo "2452"]
[BlackElo "2199"]
[TimeControl "180+1"]
[EndTime "15:04:54 PDT"]
[Termination "safikiet won by resignation"]

1. e4 {[%clk 0:03:00.9]} 1... g6 {[%clk 0:02:59]} 2. d4 {[%clk 0:02:59.3]} 2...
Bg7 {[%clk 0:02:59.2]} 3. Nc3 {[%clk 0:02:59.8]} 3... c5 {[%clk 0:02:59.4]} 4.
d5 {[%clk 0:02:59]} 4... d6 {[%clk 0:02:58.7]} 5. Bb5+ {[%clk 0:02:54.8]} 5...
Nd7 {[%clk 0:02:57.3]} 6. a4 {[%clk 0:02:54.5]} 6... a6 {[%clk 0:02:57.7]} 7.
Bd3 {[%clk 0:02:54.4]} 7... Ngf6 {[%clk 0:02:57.9]} 8. f4 {[%clk 0:02:53.6]}
8... O-O {[%clk 0:02:57.1]} 9. Nf3 {[%clk 0:02:52.8]} 9... e6 {[%clk 0:02:54.4]}
10. dxe6 {[%clk 0:02:52.4]} 10... fxe6 {[%clk 0:02:53.7]} 11. O-O {[%clk
0:02:52.4]} 11... d5 {[%clk 0:02:53.2]} 12. exd5 {[%clk 0:02:42.5]} 12... exd5
{[%clk 0:02:53.1]} 13. f5 {[%clk 0:02:42.2]} 13... c4 {[%clk 0:02:50.6]} 14. Be2
{[%clk 0:02:39]} 14... Qb6+ {[%clk 0:02:50.3]} 15. Kh1 {[%clk 0:02:37.1]} 15...
Ng4 {[%clk 0:02:48.8]} 16. Nxd5 {[%clk 0:02:31]} 16... Nf2+ {[%clk 0:02:46.1]}
17. Rxf2 {[%clk 0:02:30.5]} 17... Qxf2 {[%clk 0:02:45.6]} 18. Be3 {[%clk
0:02:30.4]} 18... Qxe3 {[%clk 0:02:37.3]} 19. Nxe3 {[%clk 0:02:29.8]} 19... gxf5
{[%clk 0:02:37.3]} 20. Bxc4+ {[%clk 0:02:25.5]} 20... Kh8 {[%clk 0:02:36.8]} 21.
Ng5 {[%clk 0:02:25.2]} 21... h6 {[%clk 0:02:35.9]} 22. Ne6 {[%clk 0:02:17]}
22... Rf6 {[%clk 0:02:25.3]} 23. Nxg7 {[%clk 0:02:10.6]} 23... Kxg7 {[%clk
0:02:25]} 24. Qd4 {[%clk 0:02:09.9]} 24... Nb6 {[%clk 0:02:12.3]} 25. Bb3 {[%clk
0:02:00.4]} 25... f4 {[%clk 0:02:04.7]} 26. Rf1 {[%clk 0:01:55.2]} 1-0

[Event "Late-Titled-Tuesday-Blitz-June-18-2024"]
[Site "Chess.com"]
[Date "2024.06.18"]
[Round "6"]
[White "mostafa_sakha"]
[Black "Skillcam"]
[Result "1-0"]
[WhiteElo "2435"]
[BlackElo "2564"]
[TimeControl "180+1"]
[EndTime "15:05:44 PDT"]
[Termination "mostafa_sakha won by resignation"]

1. d4 {[%clk 0:03:00.6]} 1... g6 {[%clk 0:03:00.3]} 2. e4 {[%clk 0:03:00.4]}
2... Bg7 {[%clk 0:03:00.6]} 3. Nf3 {[%clk 0:03:00.9]} 3... c6 {[%clk 0:03:00.6]}
4. c4 {[%clk 0:02:58.9]} 4... d5 {[%clk 0:03:00.1]} 5. Nc3 {[%clk 0:02:56.6]}
5... dxe4 {[%clk 0:02:56.1]} 6. Nxe4 {[%clk 0:02:57.5]} 6... Nf6 {[%clk
0:02:56.5]} 7. Bd3 {[%clk 0:02:52.8]} 7... O-O {[%clk 0:02:56.3]} 8. O-O {[%clk
0:02:52.7]} 8... Bg4 {[%clk 0:02:55.7]} 9. Be3 {[%clk 0:02:48.2]} 9... Nbd7
{[%clk 0:02:55.4]} 10. h3 {[%clk 0:02:46.2]} 10... Bxf3 {[%clk 0:02:55.1]} 11.
Qxf3 {[%clk 0:02:47.1]} 11... h6 {[%clk 0:02:55.8]} 12. Rfd1 {[%clk 0:02:41.6]}
12... Qc7 {[%clk 0:02:55.5]} 13. Bf4 {[%clk 0:02:32.9]} 13... e5 {[%clk
0:02:54.5]} 14. Nxf6+ {[%clk 0:02:29.1]} 14... Bxf6 {[%clk 0:02:48.5]} 15. Bxh6
{[%clk 0:02:28.8]} 15... Rfe8 {[%clk 0:02:48.8]} 16. dxe5 {[%clk 0:02:02.4]}
16... Bxe5 {[%clk 0:02:43.2]} 17. Qg4 {[%clk 0:02:00.4]} 17... Bxb2 {[%clk
0:02:39.7]} 18. Bxg6 {[%clk 0:01:55.1]} 18... Nf8 {[%clk 0:02:04.9]} 19. Bxf8
{[%clk 0:01:45.8]} 19... fxg6 {[%clk 0:02:02.8]} 20. Rd7 {[%clk 0:01:39]} 1-0

[Event "Late-Titled-Tuesday-Blitz-June-18-2024"]
[Site "Chess.com"]
[Date "2024.06.18"]
[Round "6"]
[White "secretworker2027"]
[Black "VacheH009"]
[Result "1-0"]
[WhiteElo "2677"]
[BlackElo "2530"]
[TimeControl "180+1"]
[EndTime "15:05:54 PDT"]
[Termination "secretworker2027 won by resignation"]

1. e4 {[%clk 0:02:56.9]} 1... e5 {[%clk 0:02:57.6]} 2. Nf3 {[%clk 0:02:57.2]}
2... Nc6 {[%clk 0:02:58.2]} 3. Bc4 {[%clk 0:02:57.5]} 3... Bc5 {[%clk
0:02:57.5]} 4. c3 {[%clk 0:02:57.9]} 4... Nf6 {[%clk 0:02:58]} 5. d4 {[%clk
0:02:58.1]} 5... exd4 {[%clk 0:02:58.6]} 6. b4 {[%clk 0:02:58.8]} 6... Bb6
{[%clk 0:02:50.5]} 7. e5 {[%clk 0:02:58.3]} 7... d5 {[%clk 0:02:44.7]} 8. exf6
{[%clk 0:02:57.9]} 8... dxc4 {[%clk 0:02:45.3]} 9. Qe2+ {[%clk 0:02:58.4]} 9...
Be6 {[%clk 0:02:44.4]} 10. b5 {[%clk 0:02:58.3]} 10... Na5 {[%clk 0:02:42]} 11.
fxg7 {[%clk 0:02:55.8]} 11... Rg8 {[%clk 0:02:41.7]} 12. cxd4 {[%clk 0:02:56.2]}
12... Rxg7 {[%clk 0:02:23.9]} 13. O-O {[%clk 0:02:53.8]} 13... Qd7 {[%clk
0:02:01.6]} 14. Bg5 {[%clk 0:02:48.9]} 14... Qxb5 {[%clk 0:01:45]} 15. Nc3
{[%clk 0:02:41.7]} 15... Qf5 {[%clk 0:01:26.2]} 16. d5 {[%clk 0:02:40.1]} 16...
Rxg5 {[%clk 0:01:02.7]} 17. Nxg5 {[%clk 0:02:39.2]} 17... Qxg5 {[%clk
0:01:00.2]} 18. dxe6 {[%clk 0:02:39.4]} 18... O-O-O {[%clk 0:01:00.1]} 19. exf7
{[%clk 0:02:39.3]} 19... Qg6 {[%clk 0:00:55.1]} 20. Rad1 {[%clk 0:02:35.6]}
20... Qxf7 {[%clk 0:00:19.8]} 21. Rxd8+ {[%clk 0:02:33.5]} 21... Kxd8 {[%clk
0:00:19.4]} 22. Rd1+ {[%clk 0:02:34.1]} 22... Kc8 {[%clk 0:00:18.2]} 23. Qg4+
{[%clk 0:02:34.6]} 1-0

[Event "Late-Titled-Tuesday-Blitz-June-18-2024"]
[Site "Chess.com"]
[Date "2024.06.18"]
[Round "6"]
[White "HamedWafa4"]
[Black "DanylaBagrov"]
[Result "1-0"]
[WhiteElo "2659"]
[BlackElo "2506"]
[TimeControl "180+1"]
[EndTime "15:05:57 PDT"]
[Termination "HamedWafa4 won by resignation"]

1. e4 {[%clk 0:03:00.9]} 1... c5 {[%clk 0:02:04.1]} 2. Nf3 {[%clk 0:02:59]} 2...
a6 {[%clk 0:02:04]} 3. c3 {[%clk 0:02:58.5]} 3... d5 {[%clk 0:02:03.6]} 4. exd5
{[%clk 0:02:59]} 4... Qxd5 {[%clk 0:02:04.5]} 5. d4 {[%clk 0:02:59.5]} 5... Nf6
{[%clk 0:02:05]} 6. Be3 {[%clk 0:02:59]} 6... cxd4 {[%clk 0:02:04.8]} 7. cxd4
{[%clk 0:02:59.9]} 7... e6 {[%clk 0:02:04.9]} 8. Nc3 {[%clk 0:03:00.5]} 8... Qd6
{[%clk 0:02:05.6]} 9. Bd3 {[%clk 0:03:01.2]} 9... Nc6 {[%clk 0:02:05.8]} 10. O-O
{[%clk 0:03:01.3]} 10... Be7 {[%clk 0:02:06.4]} 11. Qe2 {[%clk 0:02:59.3]} 11...
O-O {[%clk 0:02:06]} 12. Rad1 {[%clk 0:02:59.9]} 12... b5 {[%clk 0:02:06.1]} 13.
Ne4 {[%clk 0:02:55.5]} 13... Nxe4 {[%clk 0:01:59.6]} 14. Bxe4 {[%clk 0:02:56.4]}
14... Bb7 {[%clk 0:02:00.1]} 15. Ne5 {[%clk 0:02:54.2]} 15... Rac8 {[%clk
0:01:48.1]} 16. Bf4 {[%clk 0:02:44.1]} 16... Qb4 {[%clk 0:01:15.8]} 17. Qh5
{[%clk 0:02:37.8]} 17... f5 {[%clk 0:01:10.2]} 18. Nxc6 {[%clk 0:02:19.7]} 18...
Bxc6 {[%clk 0:01:05.6]} 19. Bxc6 {[%clk 0:02:20.3]} 19... Rxc6 {[%clk
0:01:06.5]} 20. Be5 {[%clk 0:02:20.7]} 20... Bd6 {[%clk 0:00:59.1]} 21. Qf3
{[%clk 0:02:16.9]} 21... Rc2 {[%clk 0:00:55.2]} 22. a3 {[%clk 0:02:15.5]} 22...
Qxb2 {[%clk 0:00:45.9]} 23. Bxd6 {[%clk 0:02:13.8]} 23... Rd8 {[%clk 0:00:44.6]}
24. Be5 {[%clk 0:02:14.1]} 1-0

[Event "Late-Titled-Tuesday-Blitz-June-18-2024"]
[Site "Chess.com"]
[Date "2024.06.18"]
[Round "6"]
[White "Boudicca64"]
[Black "miraitrunks"]
[Result "1/2-1/2"]
[WhiteElo "1883"]
[BlackElo "2160"]
[TimeControl "180+1"]
[EndTime "15:06:12 PDT"]
[Termination "Game drawn by repetition"]

1. e4 {[%clk 0:02:51.9]} 1... c5 {[%clk 0:03:00.9]} 2. g3 {[%clk 0:02:50.5]}
2... d5 {[%clk 0:02:59.6]} 3. exd5 {[%clk 0:02:48.6]} 3... Qxd5 {[%clk
0:03:00.5]} 4. Nf3 {[%clk 0:02:47.7]} 4... Bg4 {[%clk 0:02:56.1]} 5. Bg2 {[%clk
0:02:46.7]} 5... Nc6 {[%clk 0:02:56.4]} 6. O-O {[%clk 0:02:45.9]} 6... e5 {[%clk
0:02:49.2]} 7. h3 {[%clk 0:02:44.1]} 7... Bh5 {[%clk 0:02:46.6]} 8. g4 {[%clk
0:02:43.3]} 8... Bg6 {[%clk 0:02:46.4]} 9. Re1 {[%clk 0:02:42.9]} 9... Bd6
{[%clk 0:02:36.6]} 10. Nxe5 {[%clk 0:02:39.7]} 10... Qxe5 {[%clk 0:02:20.5]} 11.
Rxe5+ {[%clk 0:02:37.8]} 11... Nxe5 {[%clk 0:02:20.4]} 12. f4 {[%clk 0:02:35.7]}
12... Nc6 {[%clk 0:02:08]} 13. Bxc6+ {[%clk 0:02:33.6]} 13... bxc6 {[%clk
0:02:08.9]} 14. f5 {[%clk 0:02:32.2]} 14... O-O-O {[%clk 0:02:07.1]} 15. Nc3
{[%clk 0:02:21.8]} 15... Nf6 {[%clk 0:02:04.9]} 16. d3 {[%clk 0:02:15.1]} 16...
h5 {[%clk 0:02:04.7]} 17. fxg6 {[%clk 0:02:13.4]} 17... hxg4 {[%clk 0:02:05]}
18. hxg4 {[%clk 0:02:01.9]} 18... Rh3 {[%clk 0:02:04.3]} 19. g5 {[%clk
0:01:31.6]} 19... Rdh8 {[%clk 0:02:01.3]} 20. gxf6 {[%clk 0:01:24]} 20... Rh1+
{[%clk 0:01:50]} 21. Kf2 {[%clk 0:01:20.6]} 21... R8h2+ {[%clk 0:01:49.7]} 22.
Ke3 {[%clk 0:01:17.8]} 22... Rh3+ {[%clk 0:01:39.7]} 23. Ke2 {[%clk 0:01:13]}
23... R3h2+ {[%clk 0:01:39.8]} 24. Kf3 {[%clk 0:01:11.2]} 24... Rh3+ {[%clk
0:01:40.3]} 25. Ke2 {[%clk 0:01:05.6]} 25... R3h2+ {[%clk 0:01:40.4]} 26. Kf3
{[%clk 0:01:04.1]} 26... Rh3+ {[%clk 0:01:40.8]} 27. Ke2 {[%clk 0:01:00.2]}
1/2-1/2